{"text_format":"1","workbook":"xlsx","n_sheets":3,"sheets":["Partenza sistema","Voce","Unità misura e prezzi"],"not_rendered":{"charts":0,"images":1,"macros":1,"external_links":0,"defined_names":49,"comments":0,"pivot_tables":0},"unopened":[],"bounds":{"document_bytes":16777216,"sheet_cells":100000,"rows_first":2000,"rows_last":500,"rows_between":2000,"halvings":0,"cell_chars":16384,"cell_head_chars":4096},"cells_cut":0,"cells_raw":0,"read":"whole","date_system":"1900"}

{"sheet":"Partenza sistema","index":0,"n_rows":33,"n_cols":18,"rows_kept":33,"cut":false,"hidden":false,"merged":[[15,11,15,13],[16,11,16,13],[28,0,28,6],[21,0,21,2],[18,0,18,2],[17,11,17,13],[0,1,2,6],[31,0,31,6],[32,0,32,6],[29,3,29,5],[29,1,29,2],[16,0,16,2],[15,0,15,2],[17,0,17,2],[14,0,14,2],[7,0,12,6],[3,0,3,3],[3,6,6,6]]}
[null,"Applicazione di rondelle per tasselli a incasso"]
[]
[]
[]
["Tipologia "]
["Tappo in EPS"]
[]
[{"$f":"IF($A$6=\"Tappo in EPS\",_xlfn.CONCAT(Voce!$A$3:$E$3),_xlfn.CONCAT(Voce!$A$3,Voce!$B$4,Voce!$C$3,Voce!$D$4,Voce!$E$3))","v":"Fornitura e posa in opera di rondella in Polistirene Espanso Sinterizzato (EPS) per copertura di tasselli incassati di sistemi termocoibenti - tipo Tappo in EPS di Kerakoll. Il prezzo è per singola rondella posta effettivamente in opera. E' altresì compresa la fornitura e posa in opera di tutti i materiali sopra descritti e quanto altro occorre per dare il lavoro finito. Sono esclusi: le indagini pre e post intervento; tutti i sussidi necessari per l'esecuzione dei lavori ricadenti all'interno dei costi della sicurezza indiretti."}]
[]
[]
[]
[]
[]
["DESCRIZIONE",null,null,"U.M.","QUANTITA'","PREZZO UNITARIO*","PREZZO COMPLETO"]
["RISORSE UMANE (RU) "]
["Inserimento rondelle",null,null,null,null,null,null,null,"OPERAIO QUALIFICATO (MO1003)",null,null,{"$f":"INDEX(lavorazioni_secondostrato,(VLOOKUP($B$1,lavorazioni_secondostrato,2,FALSE)+1),3)","v":{"$error":"#NAME?"}}]
[{"$f":"IF(A16=0,\"\",$I$16)","v":"OPERAIO QUALIFICATO (MO1003)"},null,null,"H/cad",1E-3,{"$f":"IFERROR(VLOOKUP(A17,PRZ,3,FALSE),\"\")","v":29.25},{"$f":"IFERROR(E17*F17,\"\")","v":2.9250000000000002E-2},null,null,null,null,{"$f":"IF(L16=0,\"\",$I$16)","v":{"$error":"#NAME?"}},null,null,{"$f":"IFERROR(VLOOKUP(L17,prezzi,2,FALSE),\"\")","v":""},{"$f":"IF(L17=$I$16,VLOOKUP(L16,#REF!,2,FALSE),IF(L17=$I$17,VLOOKUP(L15,#REF!,2,FALSE),\"\"))","v":{"$error":"#NAME?"}},{"$f":"IFERROR(VLOOKUP(L17,prezzi,3,FALSE),\"\")","v":""},{"$f":"IFERROR(P17*Q17,\"\")","v":""}]
[null,null,null,{"$f":"IFERROR(VLOOKUP(A18,prezzi,2,FALSE),\"\")","v":""},{"$f":"IF(A18=$I$16,VLOOKUP(#REF!,QTA,2,FALSE),\"\")","v":""},"sommano RU",{"$f":"SUM(G17:G17)","v":2.9250000000000002E-2},null,null,null,null,null,null,null,"",{"$f":"IF(L18=$I$16,VLOOKUP(#REF!,#REF!,2,FALSE),IF(L18=$I$17,VLOOKUP(#REF!,#REF!,2,FALSE),\"\"))","v":{"$error":"#REF!"}},"sommano RU",{"$f":"SUM(R17:R17)","v":0}]
["PRODOTTI DA COSTRUZIONE (PR) ",null,null,{"$f":"IFERROR(VLOOKUP(A19,prezzi,2,FALSE),\"\")","v":""}]
[{"$f":"A6","v":"Tappo in EPS"},null,null,"cad",1,{"$f":"IFERROR(VLOOKUP(A20,PRZ,3,FALSE),\"\")","v":0.16},{"$f":" IFERROR(F20*E20,\"\")","v":0.16}]
[null,null,null,"",null,"sommano PR",{"$f":"SUM(G20:G20)","v":0.16}]
["ATTREZZATURE (AT) "]
["NOLO DI STRUMENTAZIONE DA CANTIERE",null,null,"H/cad",0,8,{"$f":" F23*E23","v":0}]
["TRASPORTO MATERIALI DI CONSUMO",null,null,"kg/cad",{"$f":"0.001","v":1E-3},{"$f":"0.02","v":0.02},{"$f":" F24*E24","v":2.0000000000000002E-5}]
[null,null,null,null,null,"sommano AT",{"$f":"SUM(G23:G24)","v":2.0000000000000002E-5}]
[null,null,null,null,null,"Costo Tecnico (CT)",{"$f":"SUM(G25,G21,G18)","v":0.18926999999999999}]
[null,null,null,null,null,"Costo indiretto (SG) 17,00%",{"$f":"G26*0.17","v":3.21759E-2}]
[null,null,null,null,null,"Costo figurativo (U) 10,00%",{"$f":"(G26+G27)*0.1","v":2.2144590000000002E-2}]
["* Prezzi materiali Kerakoll = Listino 07-2025. Prezzi manodopera = Prezziario DEI (I Semestre 2025) - Media Nazionale."]
[null,"RU+PR+AT+SG+U",null," PREZZO COMPLESSIVO CADAUNO",null,null,{"$f":"G26+G27+G28","v":0.24359048999999999}]
[]
["Voce di capitolato "]
[{"$f":"IF($A$6=\"Tappo in EPS\",_xlfn.CONCAT(Voce!$A$3:$E$3,Voce!$E$4),_xlfn.CONCAT(Voce!$A$3,Voce!$B$4,Voce!$C$3,Voce!$D$4,Voce!$E$4))","v":"Fornitura e posa in opera di rondella in Polistirene Espanso Sinterizzato (EPS) per copertura di tasselli incassati di sistemi termocoibenti - tipo Tappo in EPS di Kerakoll. Il prezzo è per singola rondella posta effettivamente in opera. E' altresì compresa la fornitura e posa in opera di tutti i materiali sopra descritti e quanto altro occorre per dare il lavoro finito. Sono esclusi: le indagini pre e post intervento; tutti i sussidi necessari per l'esecuzione dei lavori ricadenti all'interno dei costi della sicurezza indiretti.L'intervento si svolge nelle seguenti fasi: \na) Inserimento della rondella \nLa valutazione è espressa per singola rondella effettivamente posta in opera."}]

{"sheet":"Voce","index":1,"n_rows":4,"n_cols":5,"rows_kept":4,"cut":false,"hidden":true,"merged":[]}
[]
[]
["Fornitura e posa in opera di ","rondella in Polistirene Espanso Sinterizzato (EPS) ","per copertura di tasselli incassati di sistemi termocoibenti ","- tipo Tappo in EPS di Kerakoll."," Il prezzo è per singola rondella posta effettivamente in opera. E' altresì compresa la fornitura e posa in opera di tutti i materiali sopra descritti e quanto altro occorre per dare il lavoro finito. Sono esclusi: le indagini pre e post intervento; tutti i sussidi necessari per l'esecuzione dei lavori ricadenti all'interno dei costi della sicurezza indiretti."]
[null,"rondella in Lana di Roccia (MW) ",null,"- tipo Tappo in MW di Kerakoll.","L'intervento si svolge nelle seguenti fasi: \na) Inserimento della rondella \nLa valutazione è espressa per singola rondella effettivamente posta in opera."]

{"sheet":"Unità misura e prezzi","index":2,"n_rows":5,"n_cols":4,"rows_kept":5,"cut":false,"hidden":true,"merged":[]}
[]
[null,"Prodotto ","UM","Prezzo"]
[null,"OPERAIO QUALIFICATO (MO1003)","H/mq",29.25]
[null,"Tappo in EPS","n",0.16]
[null,"Tappo in MW","n",0.82199999999999995]